fUST/lending_fUST_20250217
["ID","MTS","AMOUNT","RATE_DAILY","PERIOD"]
[353270035,1739725842580,-910.15,8.301e-05,2]
[353270037,1739725842590,-500.0,8.301e-05,2]
[353270039,1739725842599,-359.64086363,8.301e-05,2]
[353270041,1739725842609,-500.0,8.301e-05,2]
[353270043,1739725842618,-2445.24,8.301e-05,2]
[353270045,1739725842627,-500.0,8.301e-05,2]
[353270047,1739725842636,-8097.09904974,8.301e-05,2]
[353270133,1739725843243,-4866.02095026,8.301e-05,2]
[353270136,1739725843258,-161.01362864,8.301e-05,2]
[353270138,1739725843267,-500.0,8.301e-05,2]
[353270140,1739725843277,-500.0,8.301e-05,2]
[353270141,1739725843289,-500.0,8.301e-05,2]
[353270143,1739725843299,-1021.88,8.301e-05,2]
[353270145,1739725843308,-1902.28,8.301e-05,2]
[353270147,1739725843318,-220.90542109,8.301e-05,2]
[353270189,1739725846281,-500.0,8.219e-05,2]
[353270190,1739725846292,-1948.21,8.219e-05,2]
[353270191,1739725846303,-279.09457891,8.301e-05,2]
[353270192,1739725846313,-500.0,8.301e-05,2]
[353270193,1739725846323,-500.0,8.301e-05,2]
[353270194,1739725846332,-1040.04,8.301e-05,2]
[353270195,1739725846344,-899.68,8.301e-05,2]
[353270196,1739725846354,-31407.96,8.301e-05,2]
[353270197,1739725846364,-500.0,8.301e-05,2]
[353270198,1739725846373,-3046.21,8.301e-05,2]
[353270199,1739725846383,-500.0,8.301e-05,2]
[353270200,1739725846392,-1454.65,8.301e-05,2]
[353270201,1739725846402,-500.0,8.301e-05,2]
[353270202,1739725846412,-5407.42,8.301e-05,2]
[353270203,1739725846422,-816.4,8.301e-05,2]
[353270204,1739725846432,-823.69,8.301e-05,2]
[353270205,1739725846441,-644.62,8.301e-05,2]
[353270206,1739725846451,-500.0,8.301e-05,2]
[353270207,1739725846461,-500.0,8.301e-05,2]
[353270208,1739725846470,-500.0,8.301e-05,2]
[353270209,1739725846479,-500.0,8.301e-05,2]
[353270210,1739725846489,-451.1776744,8.301e-05,2]
[353270214,1739726597723,1333.0,0.00017425,120]
[353270239,1739727032366,-300.0,8.218e-05,2]
[353270241,1739727032376,-577.05,8.219e-05,2]
[353270243,1739727032386,-500.0,8.219e-05,2]
[353270245,1739727032396,-500.0,8.219e-05,2]
[353270247,1739727032406,-500.0,8.219e-05,2]
[353270248,1739727032415,-500.0,8.219e-05,2]
[353270249,1739727032424,-500.0,8.219e-05,2]
[353270250,1739727032434,-500.0,8.219e-05,2]
[353270251,1739727032444,-500.0,8.219e-05,2]
[353270252,1739727032453,-500.0,8.219e-05,2]
[353270253,1739727032463,-500.0,8.219e-05,2]
[353270254,1739727032473,-500.0,8.219e-05,2]
[353270255,1739727032483,-496.7,8.219e-05,2]
[353270256,1739727032492,-500.0,8.219e-05,2]
[353270257,1739727032502,-500.0,8.219e-05,2]
[353270258,1739727032513,-500.0,8.219e-05,2]
[353270259,1739727032524,-500.0,8.219e-05,2]
[353270260,1739727032533,-392.32299539,8.219e-05,2]
[353270261,1739727032543,-500.0,8.219e-05,2]
[353270262,1739727032552,-502.27895175,8.219e-05,2]
[353270263,1739727032562,-500.0,8.219e-05,2]
[353270264,1739727032572,-500.0,8.219e-05,2]
[353270265,1739727032583,-500.0,8.219e-05,2]
[353270266,1739727032594,-500.0,8.219e-05,2]
[353270267,1739727032607,-500.0,8.219e-05,2]
[353270268,1739727032616,-1419.75,8.219e-05,2]
[353270269,1739727032627,-500.0,8.219e-05,2]
[353270270,1739727032637,-500.0,8.219e-05,2]
[353270271,1739727032647,-531.24809456,8.219e-05,2]
[353270272,1739727032657,-500.0,8.219e-05,2]
[353270273,1739727032666,-500.0,8.219e-05,2]
[353270274,1739727032679,-500.0,8.219e-05,2]
[353270275,1739727032688,-625.8,8.219e-05,2]
[353270276,1739727032698,-505.73,8.219e-05,2]
[353270277,1739727032707,-500.0,8.219e-05,2]
[353270278,1739727032716,-500.0,8.219e-05,2]
[353270279,1739727032726,-500.0,8.219e-05,2]
[353270280,1739727032736,-500.0,8.219e-05,2]
[353270281,1739727032746,-500.0,8.219e-05,2]
[353270282,1739727032756,-500.0,8.219e-05,2]
[353270283,1739727032765,-854.09,8.219e-05,2]
[353270284,1739727032775,-500.0,8.219e-05,2]
[353270285,1739727032784,-500.0,8.219e-05,2]
[353270286,1739727032793,-500.0,8.219e-05,2]
[353270287,1739727032803,-500.0,8.219e-05,2]
[353270288,1739727032813,-500.0,8.219e-05,2]
[353270289,1739727032825,-500.0,8.219e-05,2]
[353270290,1739727032966,-500.0,8.219e-05,2]
[353270291,1739727032977,-500.0,8.219e-05,2]
[353270292,1739727032987,-500.0,8.219e-05,2]
[353270293,1739727032998,-500.0,8.219e-05,2]
[353270294,1739727033008,-849.4,8.219e-05,2]
[353270295,1739727033017,-500.0,8.219e-05,2]
[353270296,1739727033027,-500.0,8.219e-05,2]
[353270297,1739727033037,-500.0,8.219e-05,2]
[353270298,1739727033047,-500.0,8.219e-05,2]
[353270299,1739727033057,-500.0,8.219e-05,2]
[353270300,1739727033066,-500.0,8.219e-05,2]
[353270301,1739727033078,-500.0,8.219e-05,2]
[353270302,1739727033088,-500.0,8.219e-05,2]
[353270303,1739727033098,-500.0,8.219e-05,2]
[353270304,1739727033108,-500.0,8.219e-05,2]
[353270305,1739727033118,-500.90593613,8.219e-05,2]
[353270306,1739727033127,-785.56,8.219e-05,2]
[353270307,1739727033137,-500.0,8.219e-05,2]
[353270308,1739727033147,-565.47954897,8.219e-05,2]
[353270309,1739727033158,-500.0,8.219e-05,2]
[353270310,1739727033168,-500.0,8.219e-05,2]
[353270311,1739727033178,-1377.34,8.219e-05,2]
[353270312,1739727033190,-500.0,8.219e-05,2]
[353270313,1739727033200,-500.0,8.219e-05,2]
[353270314,1739727033210,-532.12,8.219e-05,2]
[353270315,1739727033220,-500.0,8.219e-05,2]
[353270316,1739727033231,-642.07,8.219e-05,2]
[353270317,1739727033241,-500.70528006,8.219e-05,2]
[353270318,1739727033251,-500.0,8.219e-05,2]
[353270319,1739727033262,-500.0,8.219e-05,2]
[353270320,1739727033272,-500.0,8.219e-05,2]
[353270321,1739727033282,-500.0,8.219e-05,2]
[353270322,1739727033291,-500.0,8.219e-05,2]
[353270323,1739727033301,-326.75827312,8.219e-05,2]
[353270324,1739727033311,-500.0,8.219e-05,2]
[353270325,1739727033321,-500.0,8.219e-05,2]
[353270326,1739727033333,-500.0,8.219e-05,2]
[353270327,1739727033342,-178.7874689,8.219e-05,2]
[353270328,1739727033353,-500.0,8.219e-05,2]
[353270329,1739727033363,-500.0,8.219e-05,2]
[353270330,1739727033374,-507.82,8.219e-05,2]
[353270331,1739727033384,-500.0,8.219e-05,2]
[353270332,1739727033394,-500.0,8.219e-05,2]
[353270333,1739727033404,-500.0,8.219e-05,2]
[353270334,1739727033414,-500.0,8.219e-05,2]
[353270335,1739727033424,-500.0,8.219e-05,2]
[353270336,1739727033434,-573.04,8.219e-05,2]
[353270337,1739727033444,-8826.66511218,8.219e-05,2]
[353270338,1739727033674,-315.25440493,8.219e-05,2]
[353270339,1739727033689,-1363.860003,8.219e-05,2]
[353270340,1739727033702,-1786.66047989,8.219e-05,2]
[353270341,1739727033712,-1867.03,8.219e-05,2]
[353270342,1739727033722,-500.0,8.219e-05,2]
[353270343,1739727033732,-500.0,8.219e-05,2]
[353270344,1739727033742,-937.02,8.219e-05,2]
[353270345,1739727033753,-997.77,8.219e-05,2]
[353270346,1739727033763,-975.63,8.219e-05,2]
[353270347,1739727033773,-834.3,8.219e-05,2]
[353270348,1739727033783,-500.0,8.219e-05,2]
[353270349,1739727033794,-500.0,8.219e-05,2]
[353270350,1739727033805,-500.0,8.219e-05,2]
[353270351,1739727033816,-29705.88,8.219e-05,2]
[353270352,1739727033825,-1743.76,8.219e-05,2]
[353270353,1739727033836,-500.0,8.219e-05,2]
[353270354,1739727033846,-500.0,8.219e-05,2]
[353270355,1739727033856,-1333.43,8.219e-05,2]
[353270356,1739727033866,-500.0,8.219e-05,2]
[353270357,1739727033875,-865.91,8.219e-05,2]
[353270358,1739727033884,-500.0,8.219e-05,2]
[353270359,1739727033894,-2896.31,8.219e-05,2]
[353270360,1739727033905,-748.36,8.219e-05,2]
[353270361,1739727033914,-800.16,8.219e-05,2]
[353270362,1739727033924,-500.0,8.219e-05,2]
[353270363,1739727033933,-5208.56,8.219e-05,2]
[353270364,1739727033943,-500.0,8.219e-05,2]
[353270365,1739727033953,-500.0,8.219e-05,2]
[353270366,1739727033963,-500.0,8.219e-05,2]
[353270367,1739727033973,-500.0,8.219e-05,2]
[353270368,1739727033984,-619.3,8.219e-05,2]
[353270369,1739727033994,-500.0,8.219e-05,2]
[353270370,1739727034003,-500.0,8.219e-05,2]
[353270371,1739727034013,-500.0,8.219e-05,2]
[353270372,1739727034023,-500.0,8.219e-05,2]
[353270373,1739727034033,-389.55432037,8.219e-05,2]
[353270374,1739727034043,-500.0,8.219e-05,2]
[353270375,1739727034053,-500.0,8.219e-05,2]
[353270376,1739727034063,-2373.77,8.219e-05,2]
[353270377,1739727034074,-500.0,8.219e-05,2]
[353270378,1739727034084,-500.0,8.219e-05,2]
[353270379,1739727034094,-500.0,8.219e-05,2]
[353270380,1739727034104,-500.0,8.219e-05,2]
[353270381,1739727034114,-1242.33,8.219e-05,2]
[353270382,1739727034124,-500.0,8.219e-05,2]
[353270383,1739727034134,-830.93,8.219e-05,2]
[353270384,1739727034144,-500.0,8.219e-05,2]
[353270385,1739727034154,-673.68,8.219e-05,2]
[353270386,1739727034164,-500.0,8.219e-05,2]
[353270387,1739727034174,-500.0,8.219e-05,2]
[353270388,1739727034184,-519.25,8.219e-05,2]
[353270389,1739727034194,-500.0,8.219e-05,2]
[353270390,1739727034203,-2300.87,8.219e-05,2]
[353270391,1739727034213,-500.0,8.219e-05,2]
[353270392,1739727034222,-750.55,8.219e-05,2]
[353270393,1739727034232,-500.0,8.219e-05,2]
[353270394,1739727034241,-500.0,8.219e-05,2]
[353270395,1739727034251,-500.0,8.219e-05,2]
[353270396,1739727034261,-500.0,8.219e-05,2]
[353270397,1739727034272,-1579.41,8.219e-05,2]
[353270398,1739727034282,-500.0,8.219e-05,2]
[353270399,1739727034292,-122.16078634,8.219e-05,2]
[353270400,1739727034305,-994.62921366,8.219e-05,2]
[353270401,1739727034315,-649.08193215,8.219e-05,2]
[353270407,1739727038378,-734.00806785,8.219e-05,2]
[353270408,1739727038388,-500.0,8.219e-05,2]
[353270409,1739727038398,-500.0,8.219e-05,2]
[353270410,1739727038410,-1673.29,8.219e-05,2]
[353270411,1739727038420,-377.51105598,8.219e-05,2]
[353270448,1739727043480,-122.48894402,8.219e-05,2]
[353270449,1739727043493,-131.45421963,8.219e-05,2]
[353270450,1739727043507,-368.54578037,8.219e-05,2]
[353270451,1739727043517,-500.0,8.219e-05,2]
[353270452,1739727043527,-470.35784664,8.219e-05,2]
[353270467,1739727380369,1107.051764,0.00017425,120]
[353270475,1739728160891,239.98621577,0.00017425,120]
[353270502,1739728232600,-300.0,7.284e-05,2]
[353270503,1739728232611,-210.21168058,7.358e-05,2]
[353270504,1739728232623,-89.78831942,7.358e-05,2]
[353270505,1739728232632,-300.0,7.396e-05,2]
[353270506,1739728232642,-9365.81168058,7.397e-05,2]
[353270523,1739728238398,-9706.99356002,7.323e-05,2]
[353270524,1739728238409,-15534.18831942,7.397e-05,2]
[353270525,1739728238419,-420.0,8.136e-05,2]
[353270526,1739728238429,-468.83,8.219e-05,2]
[353270527,1739728238439,-500.0,8.219e-05,2]
[353270528,1739728238448,-500.0,8.219e-05,2]
[353270529,1739728238459,-500.0,8.219e-05,2]
[353270530,1739728238468,-500.0,8.219e-05,2]
[353270531,1739728238481,-500.0,8.219e-05,2]
[353270532,1739728238491,-500.0,8.219e-05,2]
[353270533,1739728238501,-500.0,8.219e-05,2]
[353270534,1739728238511,-500.0,8.219e-05,2]
[353270536,1739728238520,-500.0,8.219e-05,2]
[353270537,1739728238530,-500.0,8.219e-05,2]
[353270538,1739728238539,-500.0,8.219e-05,2]
[353270539,1739728238549,-500.0,8.219e-05,2]
[353270540,1739728238559,-549.16,8.219e-05,2]
[353270541,1739728238569,-599.72,8.219e-05,2]
[353270542,1739728238579,-500.0,8.219e-05,2]
[353270543,1739728238589,-500.0,8.219e-05,2]
[353270544,1739728238599,-500.0,8.219e-05,2]
[353270545,1739728238609,-500.0,8.219e-05,2]
[353270546,1739728238619,-500.0,8.219e-05,2]
[353270547,1739728238629,-818.51,8.219e-05,2]
[353270548,1739728238639,-500.0,8.219e-05,2]
[353270549,1739728238649,-500.0,8.219e-05,2]
[353270550,1739728238659,-500.0,8.219e-05,2]
[353270551,1739728238669,-500.0,8.219e-05,2]
[353270552,1739728238680,-500.0,8.219e-05,2]
[353270553,1739728238689,-500.0,8.219e-05,2]
[353270554,1739728238699,-500.0,8.219e-05,2]
[353270555,1739728238708,-500.0,8.219e-05,2]
[353270556,1739728238718,-500.0,8.219e-05,2]
[353270557,1739728238729,-277.68018892,8.219e-05,2]
[353270558,1739728238743,-222.31981108,8.219e-05,2]
[353270559,1739728238759,-500.0,8.219e-05,2]
[353270560,1739728238773,-500.0,8.219e-05,2]
[353270561,1739728238782,-752.83,8.219e-05,2]
[353270562,1739728238791,-1319.95,8.219e-05,2]
[353270563,1739728238800,-500.0,8.219e-05,2]
[353270564,1739728238810,-500.0,8.219e-05,2]
[353270565,1739728238820,-500.0,8.219e-05,2]
[353270566,1739728238830,-500.0,8.219e-05,2]
[353270567,1739728238840,-509.95,8.219e-05,2]
[353270568,1739728238850,-387.47419744,8.219e-05,2]
[353270569,1739728238860,-615.32,8.219e-05,2]
[353270570,1739728238870,-500.0,8.219e-05,2]
[353270571,1739728238880,-500.0,8.219e-05,2]
[353270572,1739728238890,-500.0,8.219e-05,2]
[353270573,1739728238899,-648.23243032,8.219e-05,2]
[353270574,1739728238909,-500.0,8.219e-05,2]
[353270575,1739728238919,-500.0,8.219e-05,2]
[353270576,1739728238929,-500.0,8.219e-05,2]
[353270577,1739728238938,-500.0,8.219e-05,2]
[353270578,1739728238949,-500.0,8.219e-05,2]
[353270579,1739728238958,-553.01,8.219e-05,2]
[353270580,1739728238967,-500.0,8.219e-05,2]
[353270581,1739728238979,-500.0,8.219e-05,2]
[353270582,1739728238989,-500.0,8.219e-05,2]
[353270583,1739728238999,-500.0,8.219e-05,2]
[353270584,1739728239013,-23463.74228448,8.219e-05,2]
[353270585,1739728239025,-3541.84650473,8.219e-05,2]
[353270586,1739728239042,-1462.54121079,8.219e-05,2]
[353270587,1739728239052,-500.0,8.219e-05,2]
[353270588,1739728239062,-500.0,8.219e-05,2]
[353270589,1739728239073,-639.22139433,8.219e-05,2]
[353270600,1739728243688,-638.64860567,8.219e-05,2]
[353270602,1739728243698,-1269.27940541,8.219e-05,2]
[353270676,1739729431828,-177.943409,5.941e-05,2]
[353270678,1739729431838,-177.943409,6.001e-05,2]
[353270680,1739729431847,-267.8558244,6.003e-05,2]
[353270681,1739729431857,-177.943409,6.007e-05,2]
[353270682,1739729431866,-177.943409,6.013e-05,2]
[353270683,1739729431876,-177.943409,6.019e-05,2]
[353270684,1739729431886,-177.943409,6.025e-05,2]
[353270685,1739729431895,-177.943409,6.031e-05,2]
[353270686,1739729431905,-267.8558244,6.187e-05,2]
[353270687,1739729431915,-1614.33575,6.453e-05,2]
[353270688,1739729431924,-2001.081693,6.849e-05,2]
[353270689,1739729431934,-490.0,6.96e-05,2]
[353270690,1739729431944,-300.0,7.371e-05,2]
[353270691,1739729431954,-2234.0,7.372e-05,2]
[353270692,1739729431963,-2233.0,7.372e-05,2]
[353270693,1739729431973,-2233.0,7.372e-05,2]
[353270694,1739729431983,-2233.0,7.372e-05,2]
[353270695,1739729431992,-2233.0,7.372e-05,2]
[353270696,1739729432001,-2233.0,7.372e-05,2]
[353270697,1739729432011,-5718.0,7.372e-05,2]
[353270698,1739729432020,-5715.0,7.372e-05,2]
[353270699,1739729432030,-5715.0,7.372e-05,2]
[353270700,1739729432041,-5715.0,7.372e-05,2]
[353270701,1739729432050,-5715.0,7.372e-05,2]
[353270702,1739729432060,-5715.0,7.372e-05,2]
[353270703,1739729432069,-6314.79559464,7.397e-05,2]
[353270704,1739729432089,-500.0,7.397e-05,2]
[353270725,1739729437632,-2120.21668568,7.323e-05,2]
[353270744,1739729442914,-520.90152371,7.323e-05,2]
[353270745,1739729442927,-8943.42636307,7.397e-05,2]
[353270944,1739729576493,1218.13242453,0.00014,31]
[353270947,1739730413545,18325.73757547,0.00014,30]
[353270990,1739730631986,-5000.0,7.249e-05,2]
[353270991,1739730631996,-300.0,7.396e-05,2]
[353270992,1739730632006,-24900.0,7.397e-05,2]
[353270993,1739730632015,-466.55922741,7.894e-05,2]
[353270994,1739730632024,-1041.3218544,8.136e-05,2]
[353270995,1739730632034,-420.0,8.136e-05,2]
[353270996,1739730632044,-306.0,8.14e-05,2]
[353270997,1739730632054,-431.8462186,8.14e-05,2]
[353270998,1739730632064,-309.333032,8.14e-05,2]
[353270999,1739730632073,-431.8462186,8.14e-05,2]
[353271000,1739730632083,-306.0,8.14e-05,2]
[353271001,1739730632094,-154.6992002,8.14e-05,2]
[353271002,1739730632105,-154.6992002,8.14e-05,2]
[353271003,1739730632115,-283.48868725,8.218e-05,2]
[353271004,1739730632126,-500.0,8.218e-05,2]
[353271005,1739730632137,-500.0,8.218e-05,2]
[353271006,1739730632147,-500.0,8.218e-05,2]
[353271007,1739730632157,-500.0,8.218e-05,2]
[353271008,1739730632168,-500.0,8.218e-05,2]
[353271009,1739730632179,-500.0,8.218e-05,2]
[353271010,1739730632189,-500.0,8.218e-05,2]
[353271011,1739730632199,-164.15450982,8.218e-05,2]
[353271012,1739730632209,-500.0,8.218e-05,2]
[353271013,1739730632219,-500.0,8.218e-05,2]
[353271014,1739730632230,-500.0,8.218e-05,2]
[353271015,1739730632239,-500.0,8.218e-05,2]
[353271016,1739730632250,-500.0,8.218e-05,2]
[353271017,1739730632260,-500.0,8.218e-05,2]
[353271018,1739730632269,-461.02392189,8.218e-05,2]
[353271019,1739730632279,-500.0,8.218e-05,2]
[353271020,1739730632289,-500.0,8.218e-05,2]
[353271021,1739730632298,-489.3034585,8.218e-05,2]
[353271022,1739730632309,-219.5646358,8.218e-05,2]
[353271023,1739730632318,-500.0,8.218e-05,2]
[353271024,1739730632328,-500.0,8.218e-05,2]
[353271025,1739730632337,-500.0,8.218e-05,2]
[353271026,1739730632351,-500.0,8.218e-05,2]
[353271027,1739730632361,-500.0,8.218e-05,2]
[353271028,1739730632370,-500.0,8.218e-05,2]
[353271029,1739730632378,-500.0,8.218e-05,2]
[353271030,1739730632388,-500.0,8.218e-05,2]
[353271031,1739730632398,-500.0,8.218e-05,2]
[353271032,1739730632407,-300.0,8.218e-05,2]
[353271033,1739730632417,-388.47481084,8.218e-05,2]
[353271034,1739730632426,-500.0,8.218e-05,2]
[353271035,1739730632436,-500.0,8.218e-05,2]
[353271036,1739730632445,-500.0,8.218e-05,2]
[353271037,1739730632455,-500.0,8.218e-05,2]
[353271038,1739730632464,-500.0,8.218e-05,2]
[353271039,1739730632473,-500.0,8.218e-05,2]
[353271040,1739730632483,-500.0,8.218e-05,2]
[353271041,1739730632492,-500.0,8.218e-05,2]
[353271042,1739730632502,-500.0,8.218e-05,2]
[353271043,1739730632512,-500.0,8.218e-05,2]
[353271044,1739730632522,-500.0,8.218e-05,2]
[353271045,1739730632531,-500.0,8.218e-05,2]
[353271046,1739730632541,-500.0,8.218e-05,2]
[353271047,1739730632551,-214.89827431,8.218e-05,2]
[353271048,1739730632560,-500.0,8.218e-05,2]
[353271049,1739730632570,-500.0,8.218e-05,2]
[353271050,1739730632579,-511.92739388,8.218e-05,2]
[353271051,1739730632590,-500.0,8.219e-05,2]
[353271052,1739730632599,-500.0,8.219e-05,2]
[353271053,1739730632609,-500.0,8.219e-05,2]
[353271054,1739730632618,-500.0,8.219e-05,2]
[353271055,1739730632627,-500.0,8.219e-05,2]
[353271056,1739730632637,-500.0,8.219e-05,2]
[353271057,1739730632646,-500.0,8.219e-05,2]
[353271058,1739730632655,-523.17268679,8.219e-05,2]
[353271059,1739730632664,-500.0,8.219e-05,2]
[353271060,1739730632674,-502.51,8.219e-05,2]
[353271061,1739730632683,-330.34452544,8.219e-05,2]
[353271062,1739730632696,-323.66307761,8.219e-05,2]
[353271063,1739730632706,-505.9688661,8.219e-05,2]
[353271064,1739730632715,-500.8754972,8.219e-05,2]
[353271065,1739730632724,-500.0,8.219e-05,2]
[353271066,1739730632857,-500.0,8.219e-05,2]
[353271067,1739730632867,-500.0,8.219e-05,2]
[353271068,1739730632876,-617.63,8.219e-05,2]
[353271069,1739730632885,-500.0,8.219e-05,2]
[353271070,1739730632895,-500.0,8.219e-05,2]
[353271071,1739730632905,-500.0,8.219e-05,2]
[353271072,1739730632914,-500.0,8.219e-05,2]
[353271073,1739730632924,-500.0,8.219e-05,2]
[353271074,1739730632934,-793.18,8.219e-05,2]
[353271075,1739730632943,-500.0,8.219e-05,2]
[353271076,1739730632953,-784.4,8.219e-05,2]
[353271077,1739730632962,-500.0,8.219e-05,2]
[353271078,1739730632972,-500.0,8.219e-05,2]
[353271079,1739730632981,-500.0,8.219e-05,2]
[353271080,1739730632990,-500.0,8.219e-05,2]
[353271081,1739730632999,-500.0,8.219e-05,2]
[353271082,1739730633009,-500.0,8.219e-05,2]
[353271083,1739730633020,-500.0,8.219e-05,2]
[353271084,1739730633029,-500.33705615,8.219e-05,2]
[353271085,1739730633039,-500.0,8.219e-05,2]
[353271086,1739730633049,-500.0,8.219e-05,2]
[353271087,1739730633058,-500.0,8.219e-05,2]
[353271088,1739730633068,-500.0,8.219e-05,2]
[353271089,1739730633077,-500.0,8.219e-05,2]
[353271090,1739730633087,-1264.95,8.219e-05,2]
[353271091,1739730633100,-500.0,8.219e-05,2]
[353271092,1739730633109,-500.0,8.219e-05,2]
[353271093,1739730633119,-277.33593826,8.219e-05,2]
[353271094,1739730633128,-500.0,8.219e-05,2]
[353271095,1739730633138,-500.0,8.219e-05,2]
[353271096,1739730633147,-500.0,8.219e-05,2]
[353271097,1739730633157,-500.0,8.219e-05,2]
[353271098,1739730633167,-500.0,8.219e-05,2]
[353271099,1739730633176,-500.0,8.219e-05,2]
[353271100,1739730633186,-500.0,8.219e-05,2]
[353271101,1739730633196,-523.52717747,8.219e-05,2]
[353271102,1739730633205,-500.0,8.219e-05,2]
[353271103,1739730633215,-500.0,8.219e-05,2]
[353271104,1739730633225,-500.0,8.219e-05,2]
[353271105,1739730633236,-721.46,8.219e-05,2]
[353271106,1739730633246,-500.0,8.219e-05,2]
[353271107,1739730633257,-500.0,8.219e-05,2]
[353271108,1739730633268,-500.0,8.219e-05,2]
[353271109,1739730633278,-500.0,8.219e-05,2]
[353271110,1739730633288,-500.0,8.219e-05,2]
[353271111,1739730633298,-500.0,8.219e-05,2]
[353271112,1739730633309,-500.0,8.219e-05,2]
[353271113,1739730633320,-500.0,8.219e-05,2]
[353271114,1739730633331,-433.05821167,8.219e-05,2]
[353271115,1739730633342,-500.0,8.219e-05,2]
[353271116,1739730633353,-589.68,8.219e-05,2]
[353271117,1739730633363,-500.0,8.219e-05,2]
[353271118,1739730633374,-500.0,8.219e-05,2]
[353271119,1739730633384,-500.0,8.219e-05,2]
[353271120,1739730633394,-500.0,8.219e-05,2]
[353271121,1739730633405,-500.0,8.219e-05,2]
[353271122,1739730633415,-500.0,8.219e-05,2]
[353271123,1739730633426,-500.0,8.219e-05,2]
[353271124,1739730633437,-500.0,8.219e-05,2]
[353271125,1739730633447,-500.0,8.219e-05,2]
[353271126,1739730633458,-507.36618061,8.219e-05,2]
[353271127,1739730633469,-500.0,8.219e-05,2]
[353271128,1739730633479,-500.0,8.219e-05,2]
[353271129,1739730633490,-500.0,8.219e-05,2]
[353271130,1739730633500,-500.0,8.219e-05,2]
[353271131,1739730633511,-500.0,8.219e-05,2]
[353271132,1739730633539,-500.0,8.219e-05,2]
[353271133,1739730633549,-500.0,8.219e-05,2]
[353271134,1739730633560,-500.0,8.219e-05,2]
[353271135,1739730633570,-500.0,8.219e-05,2]
[353271136,1739730633580,-500.0,8.219e-05,2]
[353271137,1739730633592,-500.0,8.219e-05,2]
[353271138,1739730633602,-500.0,8.219e-05,2]
[353271139,1739730633612,-500.0,8.219e-05,2]
[353271140,1739730633623,-500.0,8.219e-05,2]
[353271141,1739730633633,-500.0,8.219e-05,2]
[353271142,1739730633643,-500.0,8.219e-05,2]
[353271143,1739730633653,-500.0,8.219e-05,2]
[353271144,1739730633663,-500.0,8.219e-05,2]
[353271145,1739730633674,-500.0,8.219e-05,2]
[353271146,1739730633683,-291.68951805,8.219e-05,2]
[353271147,1739730633693,-500.59758062,8.219e-05,2]
[353271148,1739730633704,-500.0,8.219e-05,2]
[353271149,1739730633713,-500.0,8.219e-05,2]
[353271150,1739730633724,-500.0,8.219e-05,2]
[353271151,1739730633733,-500.0,8.219e-05,2]
[353271152,1739730633743,-500.0,8.219e-05,2]
[353271153,1739730633753,-500.0,8.219e-05,2]
[353271154,1739730633763,-500.0,8.219e-05,2]
[353271155,1739730633773,-500.0,8.219e-05,2]
[353271156,1739730633783,-500.0,8.219e-05,2]
[353271157,1739730633793,-500.0,8.219e-05,2]
[353271158,1739730633804,-503.34614275,8.219e-05,2]
[353271159,1739730633816,-583.93392669,8.219e-05,2]
[353271160,1739730633827,-500.0,8.219e-05,2]
[353271161,1739730633836,-500.0,8.219e-05,2]
[353271162,1739730633852,-552.86069459,8.219e-05,2]
[353271163,1739730633862,-500.0,8.219e-05,2]
[353271164,1739730633872,-500.0,8.219e-05,2]
[353271165,1739730633883,-500.0,8.219e-05,2]
[353271166,1739730633895,-500.0,8.219e-05,2]
[353271167,1739730633906,-500.0,8.219e-05,2]
[353271168,1739730633916,-500.0,8.219e-05,2]
[353271169,1739730633926,-500.0,8.219e-05,2]
[353271170,1739730633936,-500.0,8.219e-05,2]
[353271171,1739730633946,-581.33970971,8.219e-05,2]
[353271172,1739730633957,-503.47191045,8.219e-05,2]
[353271173,1739730633967,-500.0,8.219e-05,2]
[353271174,1739730633978,-500.0,8.219e-05,2]
[353271175,1739730633988,-500.0,8.219e-05,2]